[Event "Live Chess"]
[Site "Chess.com"]
[Date "2024.06.01"]
[Round "-"]
[White "KwikPhoenix"]
[Black "Richardallis"]
[Result "0-1"]
[WhiteElo "2439"]
[BlackElo "2041"]
[TimeControl "300"]
[EndTime "11:09:08 PDT"]
[Termination "Richardallis won by checkmate"]

1. b3 {[%clk 0:04:58.7]} 1... d5 {[%clk 0:04:47.3]} 2. Bb2 {[%clk 0:04:58.6]}
2... c5 {[%clk 0:04:45.9]} 3. e3 {[%clk 0:04:58]} 3... Nc6 {[%clk 0:04:43.9]} 4.
Bb5 {[%clk 0:04:56]} 4... Bf5 {[%clk 0:04:42.3]} 5. Nf3 {[%clk 0:04:53.9]} 5...
e6 {[%clk 0:04:40.4]} 6. Ne5 {[%clk 0:04:49.7]} 6... Qc7 {[%clk 0:04:38.4]} 7.
Bxc6+ {[%clk 0:04:48.2]} 7... bxc6 {[%clk 0:04:37.2]} 8. f4 {[%clk 0:04:48.1]}
8... f6 {[%clk 0:04:33.4]} 9. Nf3 {[%clk 0:04:47.5]} 9... Bd6 {[%clk 0:04:31.8]}
10. O-O {[%clk 0:04:46.8]} 10... Ne7 {[%clk 0:04:30.4]} 11. d3 {[%clk
0:04:45.2]} 11... O-O {[%clk 0:04:29]} 12. Nbd2 {[%clk 0:04:44.4]} 12... Bg6
{[%clk 0:04:26.7]} 13. Qe2 {[%clk 0:04:43.3]} 13... e5 {[%clk 0:04:22]} 14. fxe5
{[%clk 0:04:41.6]} 14... fxe5 {[%clk 0:04:21.4]} 15. e4 {[%clk 0:04:40.9]} 15...
d4 {[%clk 0:04:17.3]} 16. a4 {[%clk 0:04:39.7]} 16... a5 {[%clk 0:04:15.8]} 17.
Ba3 {[%clk 0:04:38.9]} 17... Bh5 {[%clk 0:04:11.6]} 18. Qe1 {[%clk 0:04:36.8]}
18... Ng6 {[%clk 0:04:09.3]} 19. g3 {[%clk 0:04:22.6]} 19... Rf6 {[%clk
0:04:03.4]} 20. Nc4 {[%clk 0:04:12.8]} 20... Raf8 {[%clk 0:03:59]} 21. Nfd2
{[%clk 0:04:10.8]} 21... Be7 {[%clk 0:03:49.8]} 22. Rxf6 {[%clk 0:03:50]} 22...
Rxf6 {[%clk 0:03:48]} 23. Nf1 {[%clk 0:03:48.7]} 23... Nf8 {[%clk 0:03:43.1]}
24. Qxa5 {[%clk 0:03:28.3]} 24... Qd7 {[%clk 0:03:41.7]} 25. Qd2 {[%clk
0:03:27.7]} 25... Qh3 {[%clk 0:03:37.1]} 26. Qg2 {[%clk 0:03:26.8]} 26... Qe6
{[%clk 0:03:33.7]} 27. Nfd2 {[%clk 0:03:22.4]} 27... Rh6 {[%clk 0:03:24.6]} 28.
h3 {[%clk 0:03:02.6]} 28... Bg5 {[%clk 0:03:21.3]} 29. Nf3 {[%clk 0:02:54.9]}
29... Bxf3 {[%clk 0:03:16]} 30. Qxf3 {[%clk 0:02:52.5]} 30... Qxh3 {[%clk
0:03:14.5]} 31. Qg2 {[%clk 0:02:49.3]} 31... Qg4 {[%clk 0:03:07.7]} 32. Bxc5
{[%clk 0:02:41.8]} 32... Ne6 {[%clk 0:03:05.3]} 33. Rf1 {[%clk 0:02:41.5]} 33...
Nxc5 {[%clk 0:03:00.8]} 34. a5 {[%clk 0:02:34.9]} 34... Re6 {[%clk 0:02:40.9]}
35. Rf5 {[%clk 0:02:30.4]} 35... g6 {[%clk 0:02:28.4]} 36. Rf3 {[%clk
0:02:00.8]} 36... Re8 {[%clk 0:02:18.9]} 37. b4 {[%clk 0:01:57.4]} 37... Na6
{[%clk 0:02:15.8]} 38. Qf2 {[%clk 0:01:51.6]} 38... Nxb4 {[%clk 0:02:12.7]} 39.
Nxe5 {[%clk 0:01:30.9]} 39... Rxe5 {[%clk 0:02:02.3]} 40. Rf8+ {[%clk
0:01:30.4]} 40... Kg7 {[%clk 0:02:00.5]} 41. Rf7+ {[%clk 0:01:30.1]} 41... Kh6
{[%clk 0:01:55.6]} 42. Qh2+ {[%clk 0:01:29.5]} 42... Qh5 {[%clk 0:01:54.2]} 43.
Qxh5+ {[%clk 0:01:21.3]} 43... gxh5 {[%clk 0:01:53]} 44. Ra7 {[%clk 0:01:18.7]}
44... Nxc2 {[%clk 0:01:47.3]} 45. Ra6 {[%clk 0:01:17.6]} 45... Kg7 {[%clk
0:01:41]} 46. Rxc6 {[%clk 0:01:14.9]} 46... Be3+ {[%clk 0:01:37.3]} 47. Kf1
{[%clk 0:01:12.8]} 47... Nb4 {[%clk 0:01:33.8]} 48. Rc7+ {[%clk 0:01:10.9]}
48... Kg6 {[%clk 0:01:31.5]} 49. a6 {[%clk 0:01:08.2]} 49... Ra5 {[%clk
0:01:30.3]} 50. a7 {[%clk 0:01:07.6]} 50... Nxd3 {[%clk 0:01:25.4]} 51. Ke2
{[%clk 0:01:05.4]} 51... Ne5 {[%clk 0:01:22.5]} 52. Re7 {[%clk 0:01:02.7]} 52...
Ra2+ {[%clk 0:01:14.8]} 53. Kd1 {[%clk 0:00:59.4]} 53... d3 {[%clk 0:01:12]} 54.
Rxe5 {[%clk 0:00:54.9]} 54... Ra1# {[%clk 0:01:09.9]} 0-1

[Event "Live Chess"]
[Site "Chess.com"]
[Date "2024.06.01"]
[Round "-"]
[White "WeakOldFinished"]
[Black "gmnorfolk"]
[Result "1-0"]
[WhiteElo "2017"]
[BlackElo "2096"]
[TimeControl "300"]
[EndTime "11:09:13 PDT"]
[Termination "WeakOldFinished won on time"]

1. d4 {[%clk 0:04:55.4]} 1... Nf6 {[%clk 0:04:58.3]} 2. c4 {[%clk 0:04:53.9]}
2... g6 {[%clk 0:04:57.9]} 3. Nc3 {[%clk 0:04:52.6]} 3... d5 {[%clk 0:04:57.5]}
4. Nf3 {[%clk 0:04:47.5]} 4... Bg7 {[%clk 0:04:55.9]} 5. cxd5 {[%clk 0:04:46.7]}
5... Nxd5 {[%clk 0:04:54.5]} 6. Qb3 {[%clk 0:04:46.1]} 6... Nb6 {[%clk
0:04:51.4]} 7. Bg5 {[%clk 0:04:44.7]} 7... O-O {[%clk 0:04:47.9]} 8. Rd1 {[%clk
0:04:43.1]} 8... Nc6 {[%clk 0:04:43]} 9. e3 {[%clk 0:04:41.7]} 9... h6 {[%clk
0:04:24.2]} 10. Bh4 {[%clk 0:04:39]} 10... Kh7 {[%clk 0:04:07.4]} 11. Be2 {[%clk
0:04:34.8]} 11... f5 {[%clk 0:03:45.9]} 12. d5 {[%clk 0:04:25.7]} 12... Ne5
{[%clk 0:03:37]} 13. Bg3 {[%clk 0:04:12.7]} 13... Nxf3+ {[%clk 0:03:32.3]} 14.
Bxf3 {[%clk 0:04:12.6]} 14... Bd7 {[%clk 0:03:24.5]} 15. O-O {[%clk 0:04:03.7]}
15... Rc8 {[%clk 0:03:17.5]} 16. a4 {[%clk 0:03:59.2]} 16... a5 {[%clk
0:03:12.3]} 17. Nb5 {[%clk 0:03:56.9]} 17... Bxb5 {[%clk 0:03:01.9]} 18. Qxb5
{[%clk 0:03:55.7]} 18... g5 {[%clk 0:02:57.4]} 19. Qxa5 {[%clk 0:03:34.9]} 19...
Nc4 {[%clk 0:02:34.4]} 20. Qb4 {[%clk 0:03:31.1]} 20... Nd6 {[%clk 0:02:30.6]}
21. Rc1 {[%clk 0:03:22.2]} 21... Qe8 {[%clk 0:02:19.6]} 22. Rfd1 {[%clk
0:02:58.5]} 22... h5 {[%clk 0:02:00.7]} 23. h4 {[%clk 0:02:52.9]} 23... f4
{[%clk 0:01:43.6]} 24. exf4 {[%clk 0:02:50.7]} 24... g4 {[%clk 0:01:42.5]} 25.
Be4+ {[%clk 0:02:48.7]} 25... Kh8 {[%clk 0:01:38.4]} 26. f5 {[%clk 0:02:43.6]}
26... Qd7 {[%clk 0:01:21]} 27. Bxd6 {[%clk 0:02:22.8]} 27... cxd6 {[%clk
0:01:14.1]} 28. g3 {[%clk 0:02:20.7]} 28... Be5 {[%clk 0:01:11.5]} 29. a5 {[%clk
0:02:15.2]} 29... Kg7 {[%clk 0:01:03.9]} 30. Bb1 {[%clk 0:02:12.9]} 30... Kf6
{[%clk 0:01:02]} 31. Qb3 {[%clk 0:02:04.5]} 31... Rxc1 {[%clk 0:00:51.8]} 32.
Rxc1 {[%clk 0:02:03.3]} 32... Rc8 {[%clk 0:00:51.3]} 33. Rd1 {[%clk 0:02:00.1]}
33... Qc7 {[%clk 0:00:36]} 34. Qe3 {[%clk 0:01:58.5]} 34... Qc5 {[%clk
0:00:31.7]} 35. Qg5+ {[%clk 0:01:55.5]} 35... Kf7 {[%clk 0:00:30.2]} 36. Qxh5+
{[%clk 0:01:49.1]} 36... Kf8 {[%clk 0:00:29.1]} 37. Qxg4 {[%clk 0:01:44.6]}
37... Qxa5 {[%clk 0:00:28.1]} 38. f6 {[%clk 0:01:42.5]} 38... Qc5 {[%clk
0:00:20.3]} 39. Bh7 {[%clk 0:01:31.8]} 39... exf6 {[%clk 0:00:10.1]} 40. Bf5
{[%clk 0:01:05]} 40... Rc7 {[%clk 0:00:06.8]} 41. Kg2 {[%clk 0:00:55.5]} 41...
Rg7 {[%clk 0:00:06.7]} 42. Qf3 {[%clk 0:00:54.6]} 42... Qb4 {[%clk 0:00:03.4]}
43. h5 {[%clk 0:00:51.3]} 43... Qxb2 {[%clk 0:00:02.5]} 44. Rb1 {[%clk
0:00:48.2]} 44... Rxg3+ {[%clk 0:00:01.5]} 45. Qxg3 {[%clk 0:00:46.9]} 45...
Bxg3 {[%clk 0:00:00.5]} 46. Rxb2 {[%clk 0:00:46]} 1-0

[Event "Live Chess"]
[Site "Chess.com"]
[Date "2024.06.01"]
[Round "-"]
[White "McFim"]
[Black "KeithArkell"]
[Result "0-1"]
[WhiteElo "1578"]
[BlackElo "2518"]
[TimeControl "300"]
[EndTime "11:09:26 PDT"]
[Termination "KeithArkell won by resignation"]

1. e4 {[%clk 0:04:55.4]} 1... c6 {[%clk 0:04:59]} 2. d4 {[%clk 0:04:54]} 2... d5
{[%clk 0:04:58.3]} 3. exd5 {[%clk 0:04:53.6]} 3... cxd5 {[%clk 0:04:57.6]} 4.
Bd3 {[%clk 0:04:53.1]} 4... Nf6 {[%clk 0:04:57.2]} 5. c3 {[%clk 0:04:51.9]} 5...
Nc6 {[%clk 0:04:55.5]} 6. Bf4 {[%clk 0:04:50.5]} 6... Bg4 {[%clk 0:04:54]} 7.
Nf3 {[%clk 0:04:49.4]} 7... e6 {[%clk 0:04:52.8]} 8. Nbd2 {[%clk 0:04:47.6]}
8... Bd6 {[%clk 0:04:52]} 9. Bxd6 {[%clk 0:04:46.4]} 9... Qxd6 {[%clk
0:04:51.9]} 10. O-O {[%clk 0:04:45.6]} 10... O-O {[%clk 0:04:50.4]} 11. Qe1
{[%clk 0:04:44.6]} 11... Bxf3 {[%clk 0:04:46.1]} 12. Nxf3 {[%clk 0:04:43.1]}
12... Qc7 {[%clk 0:04:45.2]} 13. Ne5 {[%clk 0:04:38.5]} 13... Nxe5 {[%clk
0:04:44.4]} 14. dxe5 {[%clk 0:04:37.2]} 14... Ng4 {[%clk 0:04:38.9]} 15. f4
{[%clk 0:04:31.2]} 15... Qb6+ {[%clk 0:04:37.9]} 16. Rf2 {[%clk 0:04:22.7]}
16... Qxf2+ {[%clk 0:04:35.8]} 17. Qxf2 {[%clk 0:04:21.8]} 17... Nxf2 {[%clk
0:04:35]} 18. Kxf2 {[%clk 0:04:21.7]} 18... b5 {[%clk 0:04:33.2]} 19. a3 {[%clk
0:04:20.1]} 19... Rab8 {[%clk 0:04:31.3]} 20. Ke3 {[%clk 0:04:18]} 20... Rfc8
{[%clk 0:04:30]} 21. g4 {[%clk 0:04:14.7]} 21... a5 {[%clk 0:04:28.2]} 22. h4
{[%clk 0:03:55.2]} 22... h5 {[%clk 0:04:25.5]} 23. g5 {[%clk 0:03:53.4]} 23...
g6 {[%clk 0:04:24.6]} 24. Kd4 {[%clk 0:03:49.9]} 24... Kf8 {[%clk 0:04:21]} 25.
b4 {[%clk 0:03:39.6]} 25... Rc7 {[%clk 0:04:14.5]} 26. Rb1 {[%clk 0:03:37.2]}
26... Rbc8 {[%clk 0:04:10.9]} 27. Rc1 {[%clk 0:03:35.2]} 27... axb4 {[%clk
0:04:09.4]} 28. axb4 {[%clk 0:03:32.1]} 28... Rb8 {[%clk 0:04:06.8]} 29. Ra1
{[%clk 0:03:29]} 29... Ke7 {[%clk 0:04:05.7]} 30. Ra3 {[%clk 0:03:24.8]} 30...
Kd7 {[%clk 0:04:04]} 31. Ra5 {[%clk 0:03:21.1]} 31... Kc6 {[%clk 0:04:02.9]} 32.
Ra6+ {[%clk 0:03:19.6]} 32... Rb6 {[%clk 0:04:01.5]} 33. Ra8 {[%clk 0:03:16.2]}
33... Rbb7 {[%clk 0:03:59.2]} 34. Ra6+ {[%clk 0:03:13.2]} 34... Rb6 {[%clk
0:03:58.2]} 35. Ra8 {[%clk 0:03:11.8]} 35... Kb7 {[%clk 0:03:56.8]} 36. Ra3
{[%clk 0:03:09.9]} 36... Ra6 {[%clk 0:03:55.1]} 37. Rxa6 {[%clk 0:02:55.7]}
37... Kxa6 {[%clk 0:03:54.2]} 38. Be2 {[%clk 0:02:50.5]} 38... Kb6 {[%clk
0:03:53.2]} 39. Bd3 {[%clk 0:02:49.2]} 39... Ra7 {[%clk 0:03:52.2]} 40. Be2
{[%clk 0:02:44.3]} 40... Ra1 {[%clk 0:03:50.2]} 41. Bd3 {[%clk 0:02:37.4]} 41...
Rh1 {[%clk 0:03:49]} 42. f5 {[%clk 0:02:34.5]} 42... gxf5 {[%clk 0:03:45.6]} 43.
Bxf5 {[%clk 0:02:27.3]} 43... Rxh4+ {[%clk 0:03:43.4]} 0-1

[Event "Live Chess"]
[Site "Chess.com"]
[Date "2024.06.01"]
[Round "-"]
[White "Sokolik_UA"]
[Black "willc-h99"]
[Result "0-1"]
[WhiteElo "804"]
[BlackElo "2631"]
[TimeControl "300"]
[EndTime "11:09:29 PDT"]
[Termination "willc-h99 won by checkmate"]

1. e4 {[%clk 0:04:56.7]} 1... d6 {[%clk 0:04:58.1]} 2. d4 {[%clk 0:04:55.5]}
2... Nf6 {[%clk 0:04:57]} 3. Nd2 {[%clk 0:04:50.2]} 3... Nc6 {[%clk 0:04:55]} 4.
Bc4 {[%clk 0:04:44.6]} 4... Nxd4 {[%clk 0:04:50.5]} 5. Ngf3 {[%clk 0:04:42]}
5... Nxf3+ {[%clk 0:04:44.5]} 6. Qxf3 {[%clk 0:04:40.6]} 6... e6 {[%clk
0:04:40.5]} 7. b3 {[%clk 0:04:33.3]} 7... Be7 {[%clk 0:04:39.2]} 8. O-O {[%clk
0:04:28.1]} 8... O-O {[%clk 0:04:38.4]} 9. Bb2 {[%clk 0:04:25.4]} 9... e5 {[%clk
0:04:31.9]} 10. Qg3 {[%clk 0:04:19.1]} 10... Be6 {[%clk 0:04:28.9]} 11. Nf3
{[%clk 0:04:15.2]} 11... h6 {[%clk 0:04:27.1]} 12. Nh4 {[%clk 0:03:59.6]} 12...
Nh5 {[%clk 0:04:17.3]} 13. Qf3 {[%clk 0:03:48.3]} 13... Nf4 {[%clk 0:04:14.8]}
14. Bxe6 {[%clk 0:03:41.6]} 14... fxe6 {[%clk 0:04:13.2]} 15. Qd1 {[%clk
0:03:30.6]} 15... Bxh4 {[%clk 0:04:10.4]} 16. c4 {[%clk 0:03:25.7]} 16... Qg5
{[%clk 0:03:47.5]} 17. g3 {[%clk 0:03:22]} 17... Nh3+ {[%clk 0:03:46.6]} 18. Kh1
{[%clk 0:03:19.8]} 18... Nxf2+ {[%clk 0:03:44.6]} 19. Kg2 {[%clk 0:03:18.1]}
19... Nxd1 {[%clk 0:03:43.4]} 20. Raxd1 {[%clk 0:03:16.5]} 20... Qe3 {[%clk
0:03:39.9]} 21. gxh4 {[%clk 0:03:11.4]} 21... Qe2+ {[%clk 0:03:38.7]} 22. Kh1
{[%clk 0:03:09]} 22... Rxf1+ {[%clk 0:03:36.8]} 23. Rxf1 {[%clk 0:03:08.7]}
23... Qxf1# {[%clk 0:03:36.5]} 0-1

[Event "Live Chess"]
[Site "Chess.com"]
[Date "2024.06.01"]
[Round "-"]
[White "FlyingChessKestrel13"]
[Black "CarmelJane"]
[Result "1/2-1/2"]
[WhiteElo "2096"]
[BlackElo "2086"]
[TimeControl "300"]
[EndTime "11:09:32 PDT"]
[Termination "Game drawn - insufficient material"]

1. e4 {[%clk 0:04:54.8]} 1... c5 {[%clk 0:04:58.7]} 2. c4 {[%clk 0:04:52.5]}
2... e6 {[%clk 0:04:56.5]} 3. Nc3 {[%clk 0:04:52.1]} 3... Nc6 {[%clk 0:04:51.9]}
4. Nf3 {[%clk 0:04:42.8]} 4... a6 {[%clk 0:04:49.7]} 5. Be2 {[%clk 0:04:41.7]}
5... b6 {[%clk 0:04:43.8]} 6. O-O {[%clk 0:04:40.9]} 6... Bb7 {[%clk 0:04:43.3]}
7. d4 {[%clk 0:04:38.9]} 7... cxd4 {[%clk 0:04:42]} 8. Nxd4 {[%clk 0:04:37.9]}
8... Qc7 {[%clk 0:04:38.9]} 9. Be3 {[%clk 0:04:36.3]} 9... Nf6 {[%clk
0:04:34.7]} 10. f3 {[%clk 0:04:35.2]} 10... Bd6 {[%clk 0:04:32.7]} 11. f4 {[%clk
0:04:28.7]} 11... Nxd4 {[%clk 0:04:24.4]} 12. Qxd4 {[%clk 0:04:25.2]} 12... Bc5
{[%clk 0:04:20.4]} 13. Qd3 {[%clk 0:04:21.7]} 13... Qc6 {[%clk 0:03:57.6]} 14.
b3 {[%clk 0:04:13.7]} 14... Bxe3+ {[%clk 0:03:50.6]} 15. Qxe3 {[%clk 0:04:12.6]}
15... O-O {[%clk 0:03:40]} 16. Bf3 {[%clk 0:03:59.9]} 16... Qc7 {[%clk
0:03:37.2]} 17. e5 {[%clk 0:03:57]} 17... Ne8 {[%clk 0:03:34.4]} 18. Ne4 {[%clk
0:03:55]} 18... Bxe4 {[%clk 0:03:22.9]} 19. Bxe4 {[%clk 0:03:52.1]} 19... Rd8
{[%clk 0:03:22]} 20. Rf3 {[%clk 0:03:46.5]} 20... d5 {[%clk 0:03:02.2]} 21. cxd5
{[%clk 0:03:39.7]} 21... exd5 {[%clk 0:03:00.7]} 22. Bd3 {[%clk 0:03:33.8]}
22... d4 {[%clk 0:02:57.8]} 23. Qe4 {[%clk 0:03:32.5]} 23... f5 {[%clk
0:02:54.7]} 24. Qe2 {[%clk 0:03:27.8]} 24... b5 {[%clk 0:02:48.4]} 25. Qd2
{[%clk 0:03:21]} 25... Qe7 {[%clk 0:02:40.4]} 26. Rc1 {[%clk 0:03:18.6]} 26...
Nc7 {[%clk 0:02:39.6]} 27. Rh3 {[%clk 0:03:07.5]} 27... Nd5 {[%clk 0:02:34.8]}
28. Qf2 {[%clk 0:02:56]} 28... Nc3 {[%clk 0:02:21.6]} 29. g4 {[%clk 0:02:47]}
29... g6 {[%clk 0:02:04.5]} 30. gxf5 {[%clk 0:02:45.6]} 30... gxf5 {[%clk
0:02:04.4]} 31. Rg3+ {[%clk 0:02:36.1]} 31... Kh8 {[%clk 0:02:03.8]} 32. Rg5
{[%clk 0:02:33]} 32... Rg8 {[%clk 0:01:59.8]} 33. Re1 {[%clk 0:02:27.5]} 33...
Rxg5+ {[%clk 0:01:57.6]} 34. fxg5 {[%clk 0:02:25]} 34... Qxg5+ {[%clk
0:01:57.3]} 35. Qg3 {[%clk 0:02:24]} 35... Rg8 {[%clk 0:01:25.5]} 36. Qxg5
{[%clk 0:02:21.3]} 36... Rxg5+ {[%clk 0:01:25.4]} 37. Kf2 {[%clk 0:02:18.8]}
37... Kg7 {[%clk 0:01:17]} 38. Kf3 {[%clk 0:02:14.4]} 38... Kf7 {[%clk
0:01:14.6]} 39. Kf4 {[%clk 0:02:13.4]} 39... Rh5 {[%clk 0:01:11.3]} 40. Bxf5
{[%clk 0:02:11.7]} 40... Rxh2 {[%clk 0:01:08.2]} 41. Kg3 {[%clk 0:02:00.5]}
41... Rh5 {[%clk 0:01:05.2]} 42. Bg4 {[%clk 0:01:57.5]} 42... Rg5 {[%clk
0:01:03.7]} 43. Kf4 {[%clk 0:01:54.5]} 43... Rg7 {[%clk 0:01:00.2]} 44. Rh1
{[%clk 0:01:51.2]} 44... Ke7 {[%clk 0:00:58.6]} 45. Rh2 {[%clk 0:01:39.2]} 45...
d3 {[%clk 0:00:50.8]} 46. Bf5 {[%clk 0:01:36.3]} 46... Ne2+ {[%clk 0:00:39.3]}
47. Ke3 {[%clk 0:01:30.3]} 47... Rg3+ {[%clk 0:00:30.7]} 48. Kd2 {[%clk
0:01:28.1]} 48... Nf4 {[%clk 0:00:26]} 49. Rxh7+ {[%clk 0:01:26.9]} 49... Ke8
{[%clk 0:00:24.9]} 50. Rh2 {[%clk 0:01:16.9]} 50... Ke7 {[%clk 0:00:20.1]} 51.
Rf2 {[%clk 0:01:15.5]} 51... Nd5 {[%clk 0:00:18.5]} 52. Bxd3 {[%clk 0:01:13.5]}
52... Nb4 {[%clk 0:00:17.4]} 53. Bb1 {[%clk 0:00:53.5]} 53... Rg5 {[%clk
0:00:16.4]} 54. a3 {[%clk 0:00:51.4]} 54... Nc6 {[%clk 0:00:15]} 55. Kc3 {[%clk
0:00:49.3]} 55... Rxe5 {[%clk 0:00:14.1]} 56. Bd3 {[%clk 0:00:47.4]} 56... Re3
{[%clk 0:00:13]} 57. Re2 {[%clk 0:00:46.5]} 57... Rxe2 {[%clk 0:00:12.3]} 58.
Bxe2 {[%clk 0:00:45.8]} 58... Kd6 {[%clk 0:00:12]} 59. Bf3 {[%clk 0:00:42.1]}
59... Kc5 {[%clk 0:00:11.7]} 60. b4+ {[%clk 0:00:38.7]} 60... Kb6 {[%clk
0:00:10.9]} 61. Bxc6 {[%clk 0:00:34.8]} 61... Kxc6 {[%clk 0:00:10]} 62. Kb3
{[%clk 0:00:34]} 62... Kb6 {[%clk 0:00:09.6]} 63. a4 {[%clk 0:00:33.2]} 63...
bxa4+ {[%clk 0:00:08.6]} 64. Kxa4 {[%clk 0:00:32.6]} 64... Ka7 {[%clk
0:00:07.8]} 65. Ka5 {[%clk 0:00:32]} 65... Kb7 {[%clk 0:00:07.5]} 66. b5 {[%clk
0:00:30.9]} 66... axb5 {[%clk 0:00:06.5]} 67. Kxb5 {[%clk 0:00:30.8]} 1/2-1/2

[Event "Live Chess"]
[Site "Chess.com"]
[Date "2024.06.01"]
[Round "-"]
[White "AnotherOneBadPlayer"]
[Black "Cruiseylee78"]
[Result "1-0"]
[WhiteElo "2227"]
[BlackElo "1689"]
[TimeControl "300"]
[EndTime "11:09:34 PDT"]
[Termination "AnotherOneBadPlayer won by resignation"]

1. Nf3 {[%clk 0:04:57]} 1... d6 {[%clk 0:04:59.4]} 2. b3 {[%clk 0:04:55.9]} 2...
Nd7 {[%clk 0:04:58.8]} 3. Bb2 {[%clk 0:04:54]} 3... e5 {[%clk 0:04:58.4]} 4. e3
{[%clk 0:04:53]} 4... c6 {[%clk 0:04:57.2]} 5. Be2 {[%clk 0:04:51.8]} 5... Ngf6
{[%clk 0:04:56.1]} 6. d4 {[%clk 0:04:51.1]} 6... Be7 {[%clk 0:04:54.1]} 7. O-O
{[%clk 0:04:50]} 7... Qc7 {[%clk 0:04:50.7]} 8. Nbd2 {[%clk 0:04:48.6]} 8... h6
{[%clk 0:04:49.2]} 9. c4 {[%clk 0:04:41.3]} 9... g5 {[%clk 0:04:47.7]} 10. Qc2
{[%clk 0:04:30.5]} 10... exd4 {[%clk 0:04:35.9]} 11. Nxd4 {[%clk 0:04:25.8]}
11... Rg8 {[%clk 0:04:34.1]} 12. Nf5 {[%clk 0:04:21.7]} 12... Rg6 {[%clk
0:04:17.4]} 13. Nxe7 {[%clk 0:04:15.7]} 13... Kxe7 {[%clk 0:04:17.3]} 14. Bd3
{[%clk 0:04:12.5]} 14... Rg7 {[%clk 0:04:15.2]} 15. Ne4 {[%clk 0:04:04.6]} 15...
Ne5 {[%clk 0:04:07.4]} 16. Nxf6 {[%clk 0:03:55.9]} 16... Kxf6 {[%clk 0:04:07.3]}
17. f4 {[%clk 0:03:53.2]} 17... gxf4 {[%clk 0:04:06.4]} 18. exf4 {[%clk
0:03:51.1]} 18... Qb6+ {[%clk 0:04:04]} 19. Kh1 {[%clk 0:03:48.4]} 19... Ke6
{[%clk 0:03:46.5]} 20. fxe5 {[%clk 0:03:45.9]} 20... dxe5 {[%clk 0:03:40.9]} 21.
c5 {[%clk 0:03:42.2]} 21... Qc7 {[%clk 0:03:36]} 22. Bc4+ {[%clk 0:03:40.3]}
22... Kd7 {[%clk 0:03:30.8]} 23. Rad1+ {[%clk 0:03:36.7]} 23... Ke8 {[%clk
0:03:30]} 24. Qe4 {[%clk 0:03:29.8]} 24... f5 {[%clk 0:03:23.4]} 25. Qh4 {[%clk
0:03:19.8]} 25... Rg6 {[%clk 0:03:14.6]} 26. Qh5 {[%clk 0:03:16.3]} 26... Qg7
{[%clk 0:03:13]} 27. Bxe5 {[%clk 0:03:09.7]} 27... Kf8 {[%clk 0:03:03.9]} 28.
Bxg7+ {[%clk 0:03:06.3]} 1-0

[Event "Live Chess"]
[Site "Chess.com"]
[Date "2024.06.01"]
[Round "-"]
[White "viktorskliarov"]
[Black "ACM42"]
[Result "1-0"]
[WhiteElo "2645"]
[BlackElo "2209"]
[TimeControl "300"]
[EndTime "11:09:38 PDT"]
[Termination "viktorskliarov won by resignation"]

1. e4 {[%clk 0:04:58.8]} 1... e6 {[%clk 0:04:58.4]} 2. d4 {[%clk 0:04:57.5]}
2... d5 {[%clk 0:04:57.3]} 3. e5 {[%clk 0:04:57.1]} 3... c5 {[%clk 0:04:56.1]}
4. c3 {[%clk 0:04:56.6]} 4... Nc6 {[%clk 0:04:55.5]} 5. Nf3 {[%clk 0:04:55.9]}
5... Qb6 {[%clk 0:04:54.8]} 6. a3 {[%clk 0:04:55.2]} 6... a5 {[%clk 0:04:52.5]}
7. Bd3 {[%clk 0:04:53.5]} 7... Bd7 {[%clk 0:04:50.4]} 8. Bc2 {[%clk 0:04:51.8]}
8... cxd4 {[%clk 0:04:46.4]} 9. cxd4 {[%clk 0:04:51.7]} 9... Nh6 {[%clk
0:04:45.6]} 10. O-O {[%clk 0:04:50]} 10... Nf5 {[%clk 0:04:44.6]} 11. Bxf5
{[%clk 0:04:48.8]} 11... exf5 {[%clk 0:04:43.9]} 12. Nc3 {[%clk 0:04:48.2]}
12... Be6 {[%clk 0:04:43.1]} 13. Na4 {[%clk 0:04:42.6]} 13... Qa7 {[%clk
0:04:37]} 14. Be3 {[%clk 0:04:39]} 14... Rc8 {[%clk 0:04:35.8]} 15. Rc1 {[%clk
0:04:34.9]} 15... Be7 {[%clk 0:04:34]} 16. Ne1 {[%clk 0:04:33.3]} 16... O-O
{[%clk 0:03:51.3]} 17. Nd3 {[%clk 0:04:15.4]} 17... b6 {[%clk 0:03:14.2]} 18.
Nf4 {[%clk 0:04:10.7]} 18... Qb7 {[%clk 0:03:12.7]} 19. Qf3 {[%clk 0:04:00.8]}
19... Na7 {[%clk 0:03:03.2]} 20. Nc3 {[%clk 0:03:55.1]} 20... Rfd8 {[%clk
0:02:59.4]} 21. Qg3 {[%clk 0:03:53]} 21... Qb8 {[%clk 0:02:13.1]} 22. Nh5 {[%clk
0:03:49.1]} 22... g6 {[%clk 0:02:11.5]} 23. Bg5 {[%clk 0:03:43.5]} 23... Bxg5
{[%clk 0:01:51.7]} 24. Qxg5 {[%clk 0:03:41.7]} 24... h6 {[%clk 0:01:44.5]} 25.
Nf6+ {[%clk 0:02:59.7]} 25... Kg7 {[%clk 0:01:41.3]} 26. Qg3 {[%clk 0:02:59.6]}
26... Nc6 {[%clk 0:01:33.4]} 27. Ne2 {[%clk 0:02:56]} 27... b5 {[%clk
0:01:26.2]} 28. h4 {[%clk 0:02:52]} 28... b4 {[%clk 0:01:20.9]} 29. a4 {[%clk
0:02:38.7]} 29... Qb6 {[%clk 0:01:16.8]} 30. Qe3 {[%clk 0:02:28.5]} 30... Nb8
{[%clk 0:01:09.7]} 31. b3 {[%clk 0:02:22.5]} 31... Nd7 {[%clk 0:01:05.1]} 32.
Nf4 {[%clk 0:02:17.1]} 32... Qb7 {[%clk 0:00:38.9]} 33. Nd3 {[%clk 0:01:46.8]}
33... Rc3 {[%clk 0:00:32.6]} 34. Nxd7 {[%clk 0:01:33]} 34... Qxd7 {[%clk
0:00:25.6]} 35. Rxc3 {[%clk 0:01:31.1]} 35... bxc3 {[%clk 0:00:24.6]} 36. Nc5
{[%clk 0:01:30.7]} 36... Qc7 {[%clk 0:00:20.9]} 37. Qxc3 {[%clk 0:01:27.6]}
37... Qb6 {[%clk 0:00:20.2]} 38. Rc1 {[%clk 0:01:24.1]} 38... Rb8 {[%clk
0:00:18.9]} 39. h5 {[%clk 0:01:17.2]} 39... g5 {[%clk 0:00:16.1]} 40. Nxe6+
{[%clk 0:00:55.1]} 40... fxe6 {[%clk 0:00:14.8]} 41. Qc7+ {[%clk 0:00:53.8]}
41... Kg8 {[%clk 0:00:11.7]} 42. Qe7 {[%clk 0:00:44.3]} 42... Rf8 {[%clk
0:00:09.2]} 43. Rc7 {[%clk 0:00:41.6]} 1-0